bitfinex-derivatives/quotes_SOLF0:USTF0_20260204
["timestamp","ask_amount","ask_price","bid_price","bid_amount"]
[1770219361190,4.46125677,91.898,91.77,20.20801748]
[1770219361391,9.808,91.895,91.797,9.8184]
[1770219361589,4.46125677,91.895,91.756,1.89484173]
[1770219361788,4.46125677,91.895,91.76,20.20801748]
[1770219361983,20.20801748,91.92,91.76,20.20801748]
[1770219361984,4.49381615,91.881,91.76,20.20801748]
[1770219362191,4.49381615,91.881,91.716,438.82555202]
[1770219362382,4.49381615,91.881,91.73,20.20801748]
[1770219362694,36.71381615,91.856,91.74,20.20801748]
[1770219362894,4.49381615,91.855,91.74,20.20801748]
[1770219363390,3.75463171,91.841,91.711,3.94984861]
[1770219363690,3.75463171,91.838,91.711,3.94984861]
[1770219363891,3.75463171,91.822,91.711,13.77734861]
[1770219364087,3.75463171,91.822,91.632,153.0061]
[1770219364088,3.75463171,91.779,91.62,3.94984861]
[1770219364283,3.75463171,91.778,91.622,3.94984861]
[1770219364488,152.6824,91.827,91.594,185.3]
[1770219364489,3.75463171,91.763,91.661,3.94984861]
[1770219364690,3.75463171,91.819,91.671,3.94984861]
[1770219364993,3.75463171,91.787,91.671,3.94984861]
[1770219365190,152.7511,91.786,91.648,3.94984861]
[1770219365389,3.75463171,91.731,91.633,3.94984861]
[1770219365589,3.75463171,91.729,91.604,3.94984861]
[1770219365789,3.75463171,91.699,91.573,3.94984861]
[1770219365993,3.75463171,91.727,91.601,3.91481393]
[1770219366392,3.75463171,91.727,91.594,186.39481393]
[1770219366694,4.03076556,91.708,91.56,20.20801748]
[1770219366894,4.03076556,91.706,91.491,153.2416]
[1770219367188,4.03076556,91.653,91.502,1.90014934]
[1770219367394,4.03076556,91.653,91.51,20.20801748]
[1770219367591,4.03076556,91.653,91.557,9.8441]
[1770219367785,4.04160877,91.619,91.422,153.3565]
[1770219367984,4.04160877,91.619,91.46,20.20801748]
[1770219368193,4.04160877,91.619,91.499,9.8504]
[1770219368394,4.04160877,91.648,91.52,20.20801748]
[1770219368588,152.9434,91.67,91.474,1.90108876]
[1770219368589,4.04160877,91.637,91.474,1.90108876]
[1770219368894,20.20801748,91.65,91.362,153.4585]
[1770219368895,4.04160877,91.559,91.362,153.4585]
[1770219369090,4.04160877,91.506,91.32,20.20801748]
[1770219369285,4.04160877,91.506,91.278,153.5993]
[1770219369286,0.16160877,91.506,91.372,3.85831357]
[1770219369685,153.2368,91.495,91.348,188.9]
[1770219369890,153.2305,91.499,91.343,3.92427063]
[1770219369891,215.08,91.499,91.343,3.92427063]
[1770219370191,20.20801748,91.48,91.321,1.90386572]
[1770219370489,0.16160877,91.506,91.251,3.94984861]
[1770219370490,20.20801748,91.39,91.251,3.94984861]
[1770219370697,153.3423,91.432,91.271,3.94984861]
[1770219370898,20.20801748,91.4,91.271,3.94984861]
[1770219371192,3.75463171,91.399,91.271,3.94984861]
[1770219371696,3.75463171,91.409,91.26,3.94984861]
[1770219371890,3.75463171,91.379,91.251,3.94984861]
[1770219372095,3.75463171,91.369,91.25,300.0]
[1770219372296,3.75463171,91.369,91.251,3.94984861]
[1770219372696,3.75463171,91.348,91.251,3.94984861]
[1770219372889,153.3707,91.415,91.25,300.0]
[1770219372890,3.75463171,91.319,91.25,259.89736717]
[1770219373093,217.82,91.395,91.25,259.89736717]
[1770219373302,153.3704,91.415,91.278,3.94984861]
[1770219373500,153.3497,91.427,91.278,3.94984861]
[1770219373802,153.2948,91.46,91.25,259.89736717]
[1770219373803,153.2322,91.498,91.301,3.94984861]
[1770219373995,153.2025,91.515,91.331,3.94984861]
[1770219374197,20.20801748,91.52,91.361,3.94984861]
[1770219374498,153.1152,91.568,91.332,192.38]
[1770219374499,20.20801748,91.55,91.391,3.94984861]
[1770219374693,20.20801748,91.55,91.345,153.4866]
[1770219374694,20.20801748,91.52,91.393,3.94984861]
[1770219374894,20.20801748,91.52,91.361,3.94984861]
[1770219375096,3.75463171,91.489,91.361,3.94984861]
[1770219375501,3.75463171,91.489,91.364,3.94984861]
[1770219376001,3.75463171,91.489,91.366,3.94984861]
[1770219376396,3.75463171,91.489,91.371,3.94984861]
[1770219376699,3.75463171,91.519,91.382,3.94984861]
[1770219377298,3.75463171,91.519,91.401,3.94984861]
[1770219378298,3.75463171,91.545,91.411,3.94984861]
[1770219378498,32.22,91.58,91.441,3.94984861]
[1770219378705,3.75463171,91.581,91.471,3.94984861]
[1770219378903,3.75463171,91.619,91.474,3.94984861]
[1770219379101,3.75463171,91.619,91.501,3.94984861]
[1770219379306,3.75463171,91.619,91.503,3.94984861]
[1770219379708,3.75463171,91.608,91.471,3.94984861]
[1770219380107,3.75463171,91.579,91.441,3.94984861]
[1770219380311,3.75463171,91.576,91.441,3.94984861]
[1770219380504,3.75463171,91.573,91.441,3.94984861]
[1770219380703,3.75463171,91.573,91.406,193.32]
[1770219380704,3.75463171,91.549,91.408,3.94984861]
[1770219380903,3.75463171,91.549,91.431,3.94984861]
[1770219381211,3.75463171,91.579,91.459,3.94984861]
[1770219382109,3.75463171,91.549,91.423,3.94984861]
[1770219382301,9.8454,91.546,91.423,3.94984861]
[1770219382507,3.75463171,91.545,91.423,3.94984861]
[1770219382709,3.75463171,91.545,91.431,3.94984861]
[1770219383109,3.75463171,91.543,91.401,3.94984861]
[1770219383707,3.75463171,91.543,91.423,3.74542336]
[1770219384603,4.03991451,91.54,91.423,3.74542336]
[1770219385011,4.03991451,91.537,91.423,3.74542336]
[1770219385808,4.03991451,91.566,91.428,3.74542336]
[1770219386011,4.03991451,91.596,91.451,3.74542336]
[1770219386208,4.03991451,91.596,91.433,153.3394]
[1770219386209,4.03991451,91.596,91.481,3.74542336]
[1770219386407,9.838,91.615,91.482,3.74542336]
[1770219386612,4.03991451,91.627,91.491,3.74542336]
[1770219386811,4.03991451,91.658,91.541,3.74542336]
[1770219387009,4.03991451,91.658,91.542,3.74542336]
[1770219387210,9.8354,91.639,91.542,3.74542336]
[1770219387412,4.03991451,91.658,91.542,3.74542336]
[1770219387713,4.03991451,91.655,91.542,3.74542336]
[1770219388214,4.03991451,91.655,91.469,153.2787]
[1770219388215,4.03991451,91.582,91.463,3.74542336]
[1770219389113,4.03991451,91.568,91.434,3.74542336]
[1770219389315,4.03991451,91.551,91.437,9.857]
[1770219389718,4.03991451,91.706,91.581,13.58692336]
[1770219390016,4.03991451,91.701,91.581,3.74542336]
[1770219390405,4.03991451,91.697,91.582,3.74542336]
[1770219390806,4.03991451,91.697,91.601,3.74542336]
[1770219391007,4.03991451,91.697,91.604,3.74542336]
[1770219391205,4.03991451,91.731,91.604,3.74542336]
[1770219391612,4.03991451,91.71,91.604,3.74542336]
[1770219392112,4.03991451,91.705,91.573,3.74542336]
[1770219392311,4.03991451,91.687,91.543,3.74542336]
[1770219392518,4.03991451,91.687,91.546,3.74542336]
[1770219392811,4.03991451,91.687,91.571,3.74542336]
[1770219393016,4.03991451,91.669,91.571,3.74542336]
[1770219393412,4.03991451,91.658,91.54,3.74542336]
[1770219393607,4.03991451,91.64,91.54,3.74542336]
[1770219393809,4.03991451,91.639,91.54,3.74542336]
[1770219394219,4.03991451,91.636,91.505,3.74542336]
[1770219395106,4.03991451,91.636,91.5,30.5667331]
[1770219395107,4.03991451,91.636,91.531,3.74542336]
[1770219395308,4.03991451,91.636,91.536,3.74542336]
[1770219395910,4.03991451,91.67,91.561,3.74542336]
[1770219397014,13.87221451,91.668,91.561,3.74542336]
[1770219397312,4.03991451,91.702,91.563,3.74542336]
[1770219397710,4.03991451,91.702,91.591,3.74542336]
[1770219398317,4.03991451,91.702,91.597,3.74542336]
[1770219398718,4.03991451,91.731,91.597,3.74542336]
[1770219399021,4.03991451,91.746,91.632,3.74542336]
[1770219399324,4.03991451,91.746,91.634,3.74542336]
[1770219399514,9.8223,91.761,91.651,3.74542336]
[1770219399718,32.22,91.769,91.651,3.74542336]
[1770219399918,4.03991451,91.778,91.651,3.74542336]
[1770219400217,4.03991451,91.783,91.671,3.74542336]
[1770219400410,4.03991451,91.783,91.642,3.74542336]
[1770219400612,13.86311451,91.753,91.644,13.58012336]
[1770219400809,4.03991451,91.787,91.661,3.74542336]
[1770219401211,13.85941451,91.787,91.675,3.74542336]
[1770219401522,4.03991451,91.819,91.675,3.74542336]
[1770219401720,4.03991451,91.819,91.726,3.74542336]
[1770219401921,4.03991451,91.889,91.751,3.74542336]
[1770219402220,4.03991451,91.889,91.724,152.8519]
[1770219402221,4.03991451,91.879,91.753,3.74542336]
[1770219402515,4.03991451,91.852,91.753,3.74542336]
[1770219403418,9.8126,91.851,91.753,3.74542336]
[1770219403618,152.5665,91.897,91.718,3.74542336]
[1770219403619,4.03991451,91.85,91.718,3.74542336]
[1770219404116,4.03991451,91.837,91.721,3.74542336]
[1770219404717,4.03991451,91.815,91.721,3.74542336]
[1770219404913,4.03991451,91.846,91.732,3.74542336]
[1770219405214,30.5667331,91.91,91.751,3.74542336]
[1770219405418,4.03991451,91.876,91.751,3.74542336]
[1770219405719,152.4496,91.967,91.75,30.5667331]
[1770219405720,4.03991451,91.909,91.811,3.74542336]
[1770219406119,4.03991451,91.909,91.781,13.56552336]
[1770219406120,9.8066,91.908,91.781,13.56552336]
[1770219406322,30.5667331,91.91,91.781,13.56552336]
[1770219406323,4.03991451,91.907,91.781,13.56552336]
[1770219406521,4.03991451,91.907,91.782,3.74542336]
[1770219406723,4.03991451,91.903,91.783,9.8199]
[1770219407320,4.03991451,91.887,91.783,9.8199]
[1770219408124,4.03991451,91.887,91.75,3.74542336]
[1770219408325,4.03991451,91.857,91.75,3.74542336]
[1770219408719,4.03991451,91.857,91.765,9.8218]
[1770219408913,4.03991451,91.857,91.75,3.74542336]
[1770219409119,4.03991451,91.886,91.751,3.74542336]
[1770219409413,4.03991451,91.945,91.812,3.74542336]
[1770219409624,4.03991451,91.945,91.819,3.74542336]
[1770219409820,4.03991451,91.979,91.868,9.8108]
[1770219410120,4.03991451,91.96,91.853,3.74542336]
[1770219410723,152.3367,92.035,91.853,3.74542336]
[1770219410724,4.03991451,91.989,91.853,3.74542336]
[1770219410923,4.03991451,91.989,91.866,3.74542336]
[1770219411119,4.03991451,91.972,91.866,3.74542336]
[1770219411320,4.03991451,91.972,91.839,3.74542336]
[1770219411619,4.03991451,91.971,91.839,3.74542336]
[1770219411821,4.03991451,91.958,91.839,3.74542336]
[1770219412025,4.03991451,91.958,91.775,192.36]
[1770219412026,4.03991451,91.939,91.791,3.74542336]
[1770219412222,9.8059,91.915,91.791,3.74542336]
[1770219412418,4.03991451,91.914,91.791,3.74542336]
[1770219412617,4.03991451,91.914,91.806,3.74542336]
[1770219412820,4.03991451,91.906,91.776,3.74542336]
[1770219413121,4.03991451,91.906,91.776,13.56602336]
[1770219413317,4.03991451,91.898,91.777,3.74542336]
[1770219413823,3.8767236,91.893,91.777,3.74542336]
[1770219414318,3.8767236,91.876,91.777,3.74542336]
[1770219414520,3.8767236,91.876,91.747,3.88714899]
[1770219414916,3.8767236,91.866,91.747,3.88714899]
[1770219415325,9.8139,91.84,91.73,9.8255]
[1770219415532,3.8767236,91.838,91.73,9.8255]
[1770219416021,3.8767236,91.838,91.705,3.88714899]
[1770219416429,3.8767236,91.838,91.741,9.8243]
[1770219416619,3.8767236,91.838,91.742,3.88714899]
[1770219416821,3.8767236,91.879,91.742,3.88714899]
[1770219417528,3.8767236,91.879,91.786,9.8196]
[1770219417729,3.8767236,91.879,91.772,3.88714899]
[1770219419133,9.8098,91.878,91.773,9.821]
[1770219419327,3.8767236,91.879,91.774,3.71125222]
[1770219419729,3.8767236,91.879,91.781,9.8201]
[1770219419929,3.8767236,91.879,91.781,3.71125222]
[1770219420328,3.70622707,91.908,91.771,3.71125222]
[1770219420527,3.70622707,91.908,91.778,3.71125222]
[1770219420827,3.70622707,91.929,91.788,3.71125222]
[1770219421225,3.70622707,91.917,91.801,3.71125222]
[1770219421426,3.70622707,91.959,91.805,152.7179]
[1770219421626,3.70622707,91.987,91.898,9.8076]
[1770219421828,3.70622707,92.019,91.89,3.71125222]
[1770219422329,9.7952,92.015,91.916,9.8057]
[1770219422530,3.70622707,92.019,91.901,3.71125222]
[1770219422828,3.70622707,92.019,91.904,3.71125222]
[1770219423423,3.70622707,92.04,91.925,3.71125222]
[1770219423631,3.70622707,92.038,91.901,3.71125222]
[1770219423925,3.70622707,92.038,91.911,3.71125222]
[1770219424131,3.70622707,92.038,91.938,3.71125222]
[1770219424333,3.70622707,92.038,91.901,3.71125222]
[1770219424532,3.70622707,92.035,91.902,3.71125222]
[1770219424726,3.70622707,92.034,91.902,3.71125222]
[1770219425125,3.70622707,92.034,91.903,3.71125222]
[1770219425541,9.7946,92.021,91.919,3.71125222]
[1770219425744,3.70622707,92.034,91.919,3.71125222]
[1770219426236,3.70622707,92.034,91.88,30.5667331]
[1770219426441,3.70622707,92.034,91.881,3.71125222]
[1770219426744,3.70622707,92.034,91.913,3.71125222]
[1770219427341,3.70622707,92.034,91.943,3.71125222]
[1770219427541,3.70622707,92.073,91.943,3.71125222]
[1770219428341,3.70622707,92.071,91.943,3.71125222]
[1770219428643,3.70622707,92.071,91.927,9.8045]
[1770219428842,3.70622707,92.071,91.922,191.14]
[1770219428843,3.70622707,92.071,91.928,3.71125222]
[1770219429236,3.70622707,92.048,91.946,3.71125222]
[1770219430236,9.7934,92.032,91.946,3.71125222]
[1770219430442,6.2934,92.032,91.946,3.71125222]
[1770219430742,3.70622707,92.048,91.946,3.71125222]
[1770219431053,9.792,92.045,91.948,9.8023]
[1770219431244,3.70622707,92.048,91.946,3.71125222]
[1770219431549,3.70622707,92.075,91.946,3.71125222]
[1770219431949,3.70622707,92.063,91.919,3.71125222]
[1770219432244,3.70622707,92.038,91.919,3.71125222]
[1770219432442,3.70622707,92.018,91.891,3.71125222]
[1770219432644,3.70622707,92.013,91.866,3.71125222]
[1770219433045,3.70622707,91.98,91.835,3.71125222]
[1770219433240,3.70622707,91.959,91.835,3.71125222]
[1770219433449,3.70622707,91.958,91.801,3.71125222]
[1770219433646,9.8073,91.901,91.812,9.8167]
[1770219434042,3.70622707,91.912,91.812,9.8167]
[1770219434449,3.70622707,91.912,91.801,3.71125222]
[1770219435045,9.8088,91.888,91.801,3.71125222]
[1770219435251,3.70622707,91.912,91.801,3.71125222]
[1770219435448,9.8072,91.902,91.801,3.71125222]
[1770219435650,3.70622707,91.912,91.801,3.71125222]
[1770219436050,9.8065,91.909,91.801,3.71125222]
[1770219436250,3.70622707,91.912,91.801,3.71125222]
[1770219438653,9.8089,91.886,91.801,3.71125222]
[1770219438854,3.70622707,91.912,91.801,3.71125222]
[1770219439749,9.8105,91.871,91.801,3.71125222]
[1770219439952,3.70622707,91.912,91.801,3.71125222]
[1770219440653,9.8087,91.888,91.801,3.71125222]
[1770219440859,3.70622707,91.941,91.821,3.71125222]
[1770219441557,9.8036,91.937,91.824,3.71125222]
[1770219441754,3.70622707,91.973,91.851,3.71125222]
[1770219441957,19.5896,92.019,91.851,3.71125222]
[1770219441958,3.70622707,92.019,91.851,3.71125222]
[1770219442158,3.70622707,92.019,91.844,189.06]
[1770219442159,3.70622707,92.019,91.881,3.71125222]
[1770219442551,3.70622707,92.019,91.88,30.5667331]
[1770219442552,9.7962,92.006,91.897,3.71125222]
[1770219443057,3.70622707,92.019,91.897,3.71125222]
[1770219443652,3.62456052,91.984,91.897,3.71125222]
[1770219443849,3.62456052,91.984,91.869,3.79182944]
[1770219445051,3.62456052,91.969,91.869,3.79182944]
[1770219445249,3.62456052,91.969,91.821,3.79182944]
[1770219445453,3.62456052,91.968,91.821,3.79182944]
[1770219445654,3.62456052,91.93,91.821,3.79182944]
[1770219446358,9.8054,91.919,91.821,3.79182944]
[1770219446553,3.62456052,91.93,91.821,3.79182944]
[1770219446761,9.8073,91.902,91.821,3.79182944]
[1770219447154,3.62456052,91.93,91.821,3.79182944]
[1770219447357,9.8073,91.902,91.821,3.79182944]
[1770219447550,3.62456052,91.93,91.821,3.79182944]
[1770219447760,3.62456052,91.957,91.821,3.79182944]
[1770219448059,152.3833,92.007,91.773,152.7712]
[1770219448060,3.62456052,91.999,91.841,3.79182944]
[1770219448258,3.62456052,91.999,91.843,3.79182944]
[1770219448458,3.62456052,91.978,91.873,3.79182944]
[1770219448656,3.62456052,91.978,91.85,20.20440152]
[1770219448959,3.62456052,91.978,91.855,3.79182944]
[1770219449758,3.62456052,91.978,91.867,3.79182944]
[1770219450261,9.803,91.942,91.867,3.79182944]
[1770219450564,9.803,91.942,91.841,3.79182944]
[1770219450760,9.8045,91.928,91.841,3.79182944]
[1770219451162,3.62456052,91.953,91.841,3.79182944]
[1770219451367,3.62456052,91.915,91.811,3.79182944]
[1770219451565,3.62456052,91.915,91.784,3.79182944]
[1770219452161,3.62456052,91.877,91.784,3.79182944]
[1770219452358,3.62456052,91.877,91.731,3.79182944]
[1770219452559,3.62456052,91.868,91.731,3.79182944]
[1770219452759,3.62456052,91.868,91.685,217.7]
[1770219452760,3.62456052,91.868,91.762,3.79182944]
[1770219453765,3.62456052,91.868,91.713,152.87]
[1770219453766,3.62456052,91.949,91.787,3.79182944]
[1770219454061,3.62456052,91.948,91.787,3.79182944]
[1770219454267,3.62456052,91.908,91.787,3.79182944]
[1770219454570,3.62456052,91.898,91.76,3.79182944]
[1770219454867,3.62456052,91.865,91.76,3.79182944]
[1770219455465,3.62456052,91.895,91.771,3.79182944]
[1770219456069,3.62456052,91.895,91.806,9.8174]
[1770219456269,3.62456052,91.923,91.8,20.20440152]
[1770219456465,3.62456052,91.923,91.802,3.79182944]
[1770219456660,20.20440152,91.96,91.801,187.74]
[1770219456661,3.62456052,91.946,91.823,3.79182944]
[1770219457067,3.62456052,91.924,91.835,9.8143]
[1770219457270,3.62456052,91.924,91.823,3.79182944]
[1770219457766,3.62456052,91.89,91.798,3.79182944]
[1770219458271,3.62456052,91.89,91.798,13.61012944]
[1770219458770,3.62456052,91.89,91.76,20.20440152]
[1770219458771,3.62456052,91.89,91.799,3.79182944]
[1770219458967,3.62456052,91.89,91.813,3.79182944]
[1770219459561,9.8061,91.913,91.815,9.8165]
[1770219459764,3.62456052,91.912,91.815,9.8165]
[1770219459974,3.62456052,91.938,91.833,3.79182944]
[1770219461468,3.62456052,91.938,91.849,9.8128]
[1770219461769,3.62456052,91.938,91.833,3.79182944]
[1770219461968,3.62456052,91.958,91.868,9.8107]
[1770219462172,3.62456052,91.958,91.859,3.79182944]
[1770219462476,3.62456052,91.958,91.871,9.8105]
[1770219462670,3.62456052,91.958,91.859,3.79182944]
[1770219462974,13.42966052,91.922,91.83,9.8148]
[1770219463268,3.62456052,91.922,91.83,3.79182944]
[1770219463672,3.62456052,91.922,91.841,9.8137]
[1770219463973,3.62456052,91.922,91.83,3.79182944]
[1770219464168,9.8015,91.956,91.871,3.79182944]
[1770219464673,9.8035,91.937,91.85,9.8127]
[1770219464868,3.62456052,91.942,91.845,3.79182944]
[1770219465068,3.62456052,91.942,91.82,3.79182944]
[1770219465867,3.62456052,91.942,91.858,9.8119]
[1770219466070,3.62456052,91.942,91.772,3.79182944]
[1770219466274,3.62456052,91.879,91.782,3.79182944]
[1770219466667,3.62456052,91.906,91.782,3.79182944]
[1770219467164,3.62456052,91.906,91.815,3.79182944]
[1770219467367,3.62456052,91.936,91.815,3.79182944]
[1770219467568,3.62456052,91.936,91.855,9.8122]
[1770219467866,3.62456052,91.96,91.856,3.79182944]
[1770219468870,3.62456052,91.945,91.856,3.79182944]
[1770219469373,8.10082944,92.0,91.826,3.79182944]
[1770219469374,9.807,91.904,91.826,3.79182944]
[1770219469573,9.807,91.904,91.78,20.20440152]
[1770219469574,3.62456052,91.903,91.8,3.79182944]
[1770219470767,3.62456052,91.899,91.8,3.79182944]
[1770219471170,152.4781,91.95,91.8,3.79182944]
[1770219471171,3.62456052,91.926,91.8,3.79182944]
[1770219471370,3.62456052,91.926,91.815,3.79182944]
[1770219471571,3.62456052,91.926,91.759,3.79182944]
[1770219471776,3.62456052,91.869,91.759,3.79182944]
[1770219472476,3.62456052,91.867,91.759,3.79182944]
[1770219472781,3.62456052,91.923,91.759,3.79182944]
[1770219472971,9.8092,91.883,91.762,3.79182944]
[1770219473479,3.62456052,91.878,91.762,3.79182944]
[1770219474080,3.62456052,91.878,91.763,3.99127859]
[1770219474381,3.89768093,91.929,91.763,3.99127859]
[1770219474576,3.89768093,91.892,91.763,3.99127859]
[1770219474780,3.89768093,91.892,91.771,3.99127859]
[1770219475277,3.89768093,91.89,91.782,3.99127859]
[1770219476684,9.8086,91.889,91.786,3.99127859]
[1770219476982,3.89768093,91.89,91.786,3.99127859]
[1770219477484,3.89768093,91.89,91.789,3.99127859]
[1770219478580,3.89768093,91.89,91.797,3.66606373]
[1770219478781,3.91874719,91.918,91.801,3.66606373]
[1770219479382,3.91874719,91.918,91.829,3.66606373]
[1770219480586,3.91874719,91.944,91.831,3.66606373]
[1770219481087,3.91874719,91.908,91.831,3.66606373]
[1770219481587,3.91874719,91.908,91.784,184.92]
[1770219481588,3.91874719,91.91,91.819,9.816]
[1770219481881,3.91874719,91.91,91.819,13.48206373]
[1770219482082,3.91874719,91.91,91.819,3.66606373]
[1770219482583,3.91874719,91.906,91.819,3.66606373]
[1770219483185,3.91874719,91.877,91.769,3.66606373]
[1770219483382,3.91874719,91.902,91.769,3.66606373]
[1770219483582,32.77,91.909,91.815,9.8164]
[1770219483583,3.91874719,91.899,91.815,9.8164]
[1770219483779,3.91874719,91.899,91.792,3.66606373]
[1770219484087,19.5993,91.974,91.794,3.66606373]
[1770219484088,3.91874719,91.928,91.794,3.66606373]
[1770219484283,3.91874719,91.926,91.827,3.66606373]
[1770219484684,3.91874719,91.969,91.876,9.8099]
[1770219484885,3.91874719,91.969,91.868,3.66606373]
[1770219485288,3.91874719,91.937,91.843,3.66606373]
[1770219485881,3.91874719,91.936,91.843,3.66606373]
[1770219486281,3.91874719,91.936,91.791,184.2]
[1770219486282,3.91874719,91.922,91.815,3.66606373]
[1770219486583,3.91874719,91.908,91.79,3.66606373]
[1770219486888,9.8095,91.881,91.803,9.8177]
[1770219487185,9.8095,91.881,91.79,3.66606373]
[1770219487383,9.8105,91.872,91.79,3.66606373]
[1770219487582,3.91874719,91.871,91.756,3.66606373]
[1770219487981,3.91874719,91.871,91.78,9.8202]
[1770219488283,3.91874719,91.893,91.771,3.66606373]
[1770219488584,3.91874719,91.98,91.831,3.66606373]
[1770219488783,20.20440152,91.99,91.833,3.66606373]
[1770219488784,3.91874719,91.962,91.833,3.66606373]
[1770219489084,3.91874719,91.959,91.857,3.66606373]
[1770219489385,3.85680084,91.958,91.821,3.66606373]
[1770219489587,32.77,91.958,91.821,3.66606373]
[1770219489980,20.20440152,91.93,91.785,3.66606373]
[1770219490182,32.77,91.899,91.785,3.66606373]
[1770219490586,9.8115,91.862,91.764,9.8219]
[1770219490787,32.77,91.861,91.765,3.66606373]
[1770219490988,32.77,91.861,91.724,3.66606373]
[1770219491182,152.5531,91.905,91.723,183.96]
[1770219491183,8.17347696,91.887,91.749,3.66606373]
[1770219491378,32.77,91.886,91.751,3.66606373]
[1770219491584,3.91874719,91.885,91.751,3.66606373]
[1770219491784,9.8102,91.874,91.776,3.66606373]
[1770219491984,3.91874719,91.872,91.776,3.66606373]
[1770219493281,152.6134,91.869,91.691,3.66606373]
[1770219493482,457.6572,91.905,91.691,3.66606373]
[1770219493483,3.91874719,91.808,91.691,3.66606373]
[1770219493988,9.8214,91.769,91.691,3.66606373]
[1770219494183,32.77,91.769,91.691,3.66606373]
[1770219494387,32.77,91.744,91.659,3.66606373]
[1770219494587,3.91874719,91.719,91.581,3.66606373]
[1770219494787,36.68874719,91.689,91.581,3.66606373]
[1770219494988,3.91874719,91.717,91.585,3.66606373]
[1770219495191,3.91874719,91.717,91.591,3.66606373]
[1770219495789,3.91874719,91.7,91.591,3.66606373]
[1770219496190,3.91874719,91.691,91.591,3.66606373]
[1770219496588,3.91874719,91.691,91.563,3.66606373]
[1770219496790,3.91874719,91.676,91.563,3.66606373]
[1770219497299,3.91874719,91.699,91.563,3.66606373]
[1770219497487,3.91874719,91.699,91.565,3.66606373]
[1770219497688,3.91874719,91.699,91.55,20.20440152]
[1770219497689,3.91874719,91.699,91.567,3.66606373]
[1770219497890,3.91874719,91.699,91.58,3.66606373]
[1770219498095,3.91874719,91.727,91.601,3.66606373]
[1770219498485,152.7269,91.8,91.573,183.96]
[1770219498486,3.91874719,91.754,91.631,3.66606373]
[1770219499197,3.91874719,91.754,91.632,3.66606373]
[1770219499592,3.91874719,91.751,91.632,3.66606373]
[1770219500296,3.91874719,91.751,91.65,3.66606373]
[1770219501700,3.91874719,91.788,91.65,3.66606373]
[1770219502100,3.91874719,91.784,91.655,3.66606373]
[1770219502595,152.7216,91.803,91.619,3.66606373]
[1770219502596,3.91874719,91.758,91.619,3.66606373]
[1770219502902,20.20440152,91.76,91.619,3.66606373]
[1770219502903,3.91874719,91.735,91.619,3.66606373]
[1770219503294,3.91874719,91.735,91.638,3.66606373]
[1770219505097,3.91874719,91.735,91.642,3.72035907]
[1770219505401,3.99467791,91.763,91.651,3.72035907]
[1770219505601,3.99467791,91.763,91.665,3.72035907]
[1770219505996,3.99467791,91.798,91.667,3.72035907]
[1770219506192,3.99467791,91.795,91.681,3.72035907]
[1770219507211,36.76467791,91.792,91.681,13.55115907]
[1770219507404,3.99467791,91.791,91.682,3.72035907]
[1770219507794,3.99467791,91.791,91.712,3.72035907]
[1770219508393,172.198,91.888,91.688,183.06]
[1770219508394,20.20440152,91.89,91.722,3.72035907]
[1770219508594,16.9119312,91.974,91.81,30.37408268]
[1770219508798,16.9119312,91.962,91.841,9.8136]
[1770219509008,16.9119312,91.96,91.84,30.37408268]
[1770219509201,16.9119312,91.96,91.81,152.7097]
[1770219509406,16.9119312,91.949,91.841,9.8136]
[1770219509599,16.9119312,91.949,91.789,183.34]
[1770219509906,17.12706834,91.977,91.821,152.6902]
[1770219510201,32.77,92.019,91.91,30.37408268]
[1770219510400,17.12706834,92.061,91.951,9.802]
[1770219510604,17.12706834,92.061,91.936,152.4992]
[1770219510905,17.12706834,92.061,91.914,152.5361]
[1770219511108,17.12706834,92.059,91.925,152.5178]
[1770219511398,17.12706834,92.059,91.89,30.37408268]
[1770219511399,12.22636834,92.029,91.865,152.6172]
[1770219511599,152.236,92.096,91.91,30.37408268]
[1770219511600,12.22636834,92.057,91.91,30.37408268]
[1770219511800,12.22636834,92.057,91.936,152.5006]
[1770219512000,12.22636834,92.057,91.952,152.4732]
[1770219512202,12.44134302,92.109,91.941,152.4911]
[1770219512499,12.44134302,92.109,91.914,152.5372]
[1770219512500,12.44134302,92.099,91.955,152.4691]
[1770219512702,12.44134302,92.099,91.921,152.5247]
[1770219512703,12.44134302,92.089,91.95,30.37408268]
[1770219512899,12.44134302,92.089,91.922,152.5233]
[1770219513096,12.44134302,92.089,91.96,30.37408268]
[1770219513305,12.44134302,92.089,91.951,152.4749]
[1770219513606,12.44134302,92.089,91.957,9.8012]
[1770219513809,12.44134302,92.089,91.98,30.37408268]
[1770219514004,12.46212804,92.118,91.984,152.4202]
[1770219514203,12.46212804,92.118,91.98,30.37408268]
[1770219514204,12.46212804,92.118,91.985,187.7]
[1770219514405,12.46212804,92.118,91.99,30.37408268]
[1770219514708,12.46212804,92.148,92.05,30.37408268]
[1770219514905,12.46212804,92.148,92.051,187.88]